lending/lending_fUSD_20240603
["ID","MTS","AMOUNT","RATE_DAILY","PERIOD"]
[328459126,1717416647472,-500.0,0.00032318,4]
[328459127,1717416647481,-500.0,0.00032318,4]
[328459128,1717416647491,-500.0,0.00032318,4]
[328459129,1717416647504,-500.0,0.00032318,4]
[328459130,1717416647513,-500.0,0.00032318,4]
[328459131,1717416647522,-500.0,0.00032318,4]
[328459132,1717416647532,-872.23,0.00032329,2]
[328459133,1717416647542,-416.78,0.00032329,2]
[328459134,1717416647552,-872.23,0.00032329,2]
[328459135,1717416647561,-416.78,0.00032329,2]
[328459136,1717416647571,-416.78,0.00032329,2]
[328459137,1717416647582,-872.23,0.00032329,2]
[328459138,1717416647592,-872.23,0.00032329,2]
[328459139,1717416647601,-416.78,0.00032329,2]
[328459140,1717416647610,-416.78,0.00032329,2]
[328459141,1717416647619,-872.23,0.00032329,2]
[328459142,1717416647629,-872.23,0.00032329,2]
[328459143,1717416647638,-416.78,0.00032329,2]
[328459144,1717416647647,-872.23,0.00032329,2]
[328459145,1717416647656,-416.78,0.00032329,2]
[328459146,1717416647665,-872.23,0.00032329,2]
[328459147,1717416647675,-150.0,0.00032349,2]
[328459148,1717416647684,-150.0,0.00032356,2]
[328459149,1717416647693,-2046.34628357,0.00032382,4]
[328459150,1717416647702,-447.92153117,0.00032386,2]
[328459151,1717416647711,-150.0,0.00032386,2]
[328459152,1717416647720,-1768.22700629,0.00032393,40]
[328459153,1717416647729,-150.0,0.000324,7]
[328459154,1717416647738,-150.0,0.00032424,2]
[328459155,1717416647748,-173.51,0.00032444,2]
[328459156,1717416647757,-2000.0,0.00032454,2]
[328459157,1717416647766,-200.0,0.00032454,2]
[328459158,1717416647775,-150.0,0.00032455,2]
[328459159,1717416647784,-150.0,0.00032461,2]
[328459160,1717416647793,-150.0,0.00032466,2]
[328459161,1717416647802,-258.47,0.00032466,2]
[328459162,1717416647811,-150.0,0.00032466,2]
[328459163,1717416647820,-525.57,0.00032466,2]
[328459164,1717416647829,-239.42,0.00032466,2]
[328459165,1717416647838,-163.95,0.00032466,2]
[328459166,1717416647847,-150.0,0.00032466,2]
[328459167,1717416647974,-155.87,0.00032466,2]
[328459168,1717416647986,-422.0,0.00032466,2]
[328459169,1717416647997,-352.88,0.00032466,2]
[328459170,1717416648007,-229.82,0.00032466,2]
[328459171,1717416648017,-525.57,0.00032466,2]
[328459172,1717416648026,-150.0,0.00032466,2]
[328459173,1717416648036,-150.0,0.00032466,2]
[328459174,1717416648045,-150.0,0.00032466,2]
[328459175,1717416648054,-422.0,0.00032466,2]
[328459176,1717416648063,-150.0,0.00032466,2]
[328459177,1717416648072,-163.95,0.00032466,2]
[328459178,1717416648081,-352.88,0.00032466,2]
[328459179,1717416648090,-150.0,0.00032466,2]
[328459180,1717416648099,-422.0,0.00032466,2]
[328459181,1717416648108,-525.57,0.00032466,2]
[328459182,1717416648117,-150.0,0.00032466,2]
[328459183,1717416648126,-150.0,0.00032466,2]
[328459184,1717416648135,-352.88,0.00032466,2]
[328459185,1717416648144,-150.0,0.00032466,2]
[328459186,1717416648153,-150.0,0.00032466,2]
[328459187,1717416648162,-163.53,0.00032466,2]
[328459188,1717416648171,-150.0,0.00032466,2]
[328459189,1717416648180,-422.0,0.00032466,2]
[328459190,1717416648189,-150.0,0.00032466,2]
[328459191,1717416648197,-525.57,0.00032466,2]
[328459192,1717416648207,-352.88,0.00032466,2]
[328459193,1717416648216,-150.0,0.00032466,2]
[328459194,1717416648226,-150.0,0.00032466,2]
[328459195,1717416648235,-525.57,0.00032466,2]
[328459196,1717416648247,-150.0,0.00032466,2]
[328459197,1717416648256,-150.0,0.00032466,2]
[328459198,1717416648265,-150.0,0.00032466,2]
[328459199,1717416648274,-422.0,0.00032466,2]
[328459200,1717416648283,-150.0,0.00032466,2]
[328459201,1717416648291,-150.0,0.00032466,2]
[328459202,1717416648300,-352.88,0.00032466,2]
[328459203,1717416648310,-422.0,0.00032466,2]
[328459204,1717416648319,-150.0,0.00032466,2]
[328459205,1717416648328,-523.32,0.00032466,2]
[328459206,1717416648337,-150.0,0.00032466,2]
[328459207,1717416648346,-150.0,0.00032466,2]
[328459208,1717416648355,-702.14,0.00032466,2]
[328459209,1717416648364,-422.0,0.00032466,2]
[328459210,1717416648373,-150.0,0.00032466,2]
[328459211,1717416648382,-150.0,0.00032466,2]
[328459212,1717416648391,-150.0,0.00032466,2]
[328459213,1717416648400,-150.0,0.00032466,2]
[328459214,1717416648409,-150.0,0.00032466,2]
[328459215,1717416648418,-150.0,0.00032466,2]
[328459216,1717416648427,-767.59,0.00032494,4]
[328459217,1717416648436,-526.66,0.00032494,4]
[328459218,1717416648447,-500.0,0.00032494,4]
[328459219,1717416648457,-769.79,0.00032494,4]
[328459220,1717416648466,-2858.23,0.00032494,4]
[328459221,1717416648475,-170.76533175,0.00032494,7]
[328459222,1717416648485,-500.0,0.00032494,4]
[328459223,1717416648495,-631.37,0.00032494,4]
[328459224,1717416648508,-516.97,0.00032494,4]
[328459225,1717416648517,-528.82,0.00032494,4]
[328459226,1717416648526,-500.0,0.00032494,4]
[328459227,1717416648535,-783.49,0.00032494,4]
[328459228,1717416648545,-526.41,0.00032494,4]
[328459229,1717416648554,-500.0,0.00032494,4]
[328459230,1717416648563,-500.0,0.00032494,4]
[328459231,1717416648573,-500.0,0.00032494,4]
[328459232,1717416648584,-500.0,0.00032494,4]
[328459233,1717416648593,-2433.57,0.00032494,4]
[328459234,1717416648603,-10624.38,0.00032494,4]
[328459235,1717416648612,-825.24,0.00032494,4]
[328459236,1717416648622,-500.0,0.00032494,4]
[328459237,1717416648632,-500.0,0.00032494,4]
[328459238,1717416648642,-609.69,0.00032494,4]
[328459239,1717416648651,-500.0,0.00032494,4]
[328459240,1717416648660,-500.0,0.00032495,4]
[328459241,1717416648669,-500.0,0.00032495,4]
[328459242,1717416648679,-500.0,0.00032495,4]
[328459243,1717416648688,-151.0,0.00032495,7]
[328459244,1717416648698,-151.0,0.00032495,7]
[328459245,1717416648707,-500.0,0.00032495,4]
[328459246,1717416648716,-500.0,0.00032495,4]
[328459247,1717416648725,-500.0,0.00032495,4]
[328459248,1717416648735,-589.1,0.00032495,4]
[328459249,1717416648746,-500.0,0.00032495,4]
[328459250,1717416648754,-763.85,0.00032495,4]
[328459251,1717416648763,-500.0,0.00032495,4]
[328459252,1717416648772,-700.17,0.00032495,4]
[328459253,1717416648781,-500.0,0.00032495,4]
[328459254,1717416648790,-608.4,0.00032495,4]
[328459255,1717416648799,-500.0,0.00032495,4]
[328459256,1717416648808,-500.0,0.00032495,4]
[328459257,1717416648817,-753.19,0.00032495,4]
[328459258,1717416648826,-500.0,0.00032495,4]
[328459259,1717416648835,-500.0,0.00032495,4]
[328459260,1717416648845,-500.0,0.00032495,4]
[328459261,1717416648854,-500.0,0.00032495,4]
[328459262,1717416648863,-257.14974073,0.00032495,4]
[328459263,1717416648873,-515.10553527,0.00032495,4]
[328459264,1717416648882,-500.0,0.00032495,4]
[328459265,1717416648891,-500.0,0.00032495,4]
[328459266,1717416648901,-500.0,0.00032495,4]
[328459267,1717416648909,-500.0,0.00032495,4]
[328459268,1717416648918,-1806.26,0.00032495,4]
[328459269,1717416648928,-500.0,0.00032495,4]
[328459270,1717416648936,-500.0,0.00032495,4]
[328459271,1717416648946,-589.51,0.00032495,4]
[328459272,1717416648954,-977.33,0.00032495,4]
[328459273,1717416648963,-500.0,0.00032495,4]
[328459274,1717416648972,-894.53,0.00032495,4]
[328459275,1717416648981,-1558.8,0.00032495,4]
[328459276,1717416648991,-750.25,0.00032495,4]
[328459277,1717416649001,-500.0,0.00032495,4]
[328459278,1717416649010,-577.95,0.00032495,4]
[328459279,1717416649019,-500.0,0.00032495,4]
[328459280,1717416649028,-304.79659021,0.00032495,4]
[328459281,1717416649037,-500.0,0.00032495,4]
[328459282,1717416649047,-500.0,0.00032495,4]
[328459283,1717416649057,-150.0,0.00032523,2]
[328459284,1717416649066,-423.80389191,0.00032533,15]
[328459285,1717416649075,-2046.34628357,0.00032545,4]
[328459286,1717416649084,-212.0,0.0003257,2]
[328459287,1717416649094,-500.0,0.00032592,4]
[328459288,1717416649103,-500.0,0.00032592,4]
[328459289,1717416649113,-500.0,0.00032592,4]
[328459290,1717416649122,-500.0,0.00032592,4]
[328459291,1717416649131,-500.0,0.00032592,4]
[328459292,1717416649140,-500.0,0.00032592,4]
[328459293,1717416649149,-500.0,0.00032592,4]
[328459294,1717416649159,-500.0,0.00032592,4]
[328459295,1717416649168,-500.0,0.00032592,4]
[328459296,1717416649177,-500.0,0.00032592,4]
[328459297,1717416649186,-500.0,0.00032592,4]
[328459298,1717416649197,-500.0,0.00032592,4]
[328459299,1717416649206,-500.0,0.00032592,4]
[328459300,1717416649215,-668.0,0.000326,21]
[328459301,1717416649225,-311.1,0.0003261,2]
[328459302,1717416649233,-150.0,0.00032613,2]
[328459303,1717416649244,-150.0,0.00032614,2]
[328459304,1717416649253,-150.0,0.00032615,2]
[328459305,1717416649263,-150.0,0.00032623,2]
[328459306,1717416649272,-150.0,0.00032631,2]
[328459307,1717416649281,-154.41643192,0.0003264,7]
[328459308,1717416649290,-150.0,0.00032647,2]
[328459309,1717416649300,-713.16708994,0.00032649,7]
[328459310,1717416649309,-447.92153117,0.00032657,2]
[328459311,1717416649318,-150.0,0.00032672,2]
[328459312,1717416649327,-150.0,0.00032687,2]
[328459313,1717416649337,-150.0,0.00032692,2]
[328459314,1717416649346,-2046.34628357,0.00032709,4]
[328459315,1717416649355,-150.0,0.00032716,2]
[328459316,1717416649364,-150.0,0.00032716,2]
[328459317,1717416649373,-150.0,0.00032717,2]
[328459318,1717416649382,-150.0,0.00032719,2]
[328459319,1717416649392,-150.0,0.00032724,2]
[328459320,1717416649401,-167.96,0.00032725,2]
[328459321,1717416649410,-323.24657171,0.00032725,2]
[328459322,1717416649419,-150.0,0.00032728,2]
[328459323,1717416649429,-150.0,0.00032732,2]
[328459324,1717416649438,-150.0,0.00032735,2]
[328459325,1717416649447,-150.0,0.00032737,2]
[328459326,1717416649456,-150.0,0.0003274,2]
[328459327,1717416649465,-150.0,0.00032741,2]
[328459328,1717416649474,-150.0,0.00032744,2]
[328459329,1717416649483,-150.0,0.00032744,2]
[328459330,1717416649494,-150.0,0.00032751,2]
[328459331,1717416649506,-423.80389191,0.00032756,15]
[328459332,1717416649516,-150.0,0.00032758,2]
[328459333,1717416649525,-150.0,0.00032759,2]
[328459334,1717416649535,-767.59,0.00032768,4]
[328459335,1717416649545,-526.66,0.00032768,4]
[328459336,1717416649554,-500.0,0.00032768,4]
[328459337,1717416649563,-769.79,0.00032768,4]
[328459338,1717416649573,-2858.23,0.00032768,4]
[328459339,1717416649584,-500.0,0.00032768,4]
[328459340,1717416649593,-631.37,0.00032768,4]
[328459341,1717416649602,-516.97,0.00032768,4]
[328459342,1717416649611,-528.82,0.00032768,4]
[328459343,1717416649620,-500.0,0.00032768,4]
[328459344,1717416649630,-783.49,0.00032768,4]
[328459345,1717416649639,-526.41,0.00032768,4]
[328459346,1717416649648,-500.0,0.00032768,4]
[328459347,1717416649657,-500.0,0.00032768,4]
[328459348,1717416649667,-500.0,0.00032768,4]
[328459349,1717416649677,-500.0,0.00032768,4]
[328459350,1717416649686,-2433.57,0.00032768,4]
[328459351,1717416649696,-10624.38,0.00032768,4]
[328459352,1717416649705,-825.24,0.00032768,4]
[328459353,1717416649714,-500.0,0.00032768,4]
[328459354,1717416649724,-500.0,0.00032768,4]
[328459355,1717416649733,-609.69,0.00032768,4]
[328459356,1717416649743,-500.0,0.00032768,4]
[328459357,1717416649752,-500.0,0.00032769,4]
[328459358,1717416649761,-152.864937,0.00032769,7]
[328459359,1717416649770,-500.0,0.00032769,4]
[328459360,1717416649779,-500.0,0.00032769,4]
[328459361,1717416649789,-500.0,0.00032769,4]
[328459362,1717416649798,-500.0,0.00032769,4]
[328459363,1717416649807,-500.0,0.00032769,4]
[328459364,1717416649816,-589.1,0.00032769,4]
[328459365,1717416649825,-500.0,0.00032769,4]
[328459366,1717416649834,-763.85,0.00032769,4]
[328459367,1717416649844,-500.0,0.00032769,4]
[328459368,1717416649853,-700.17,0.00032769,4]
[328459369,1717416649862,-497.34701195,0.00032769,4]
[328459370,1717416649871,-608.4,0.00032769,4]
[328459371,1717416649881,-507.0,0.00032769,4]
[328459372,1717416649890,-500.0,0.00032769,4]
[328459373,1717416649899,-500.0,0.00032769,4]
[328459374,1717416649908,-753.19,0.00032769,4]
[328459375,1717416649918,-254.04080479,0.00032769,4]
[328459376,1717416649927,-500.0,0.00032769,4]
[328459377,1717416649936,-500.0,0.00032769,4]
[328459378,1717416649945,-500.0,0.00032769,4]
[328459379,1717416649954,-500.0,0.00032769,4]
[328459380,1717416649964,-500.0,0.00032769,4]
[328459381,1717416649973,-500.0,0.00032769,4]
[328459382,1717416649983,-1806.26,0.00032769,4]
[328459383,1717416649993,-500.0,0.00032769,4]
[328459384,1717416650002,-500.0,0.00032769,4]
[328459385,1717416650012,-589.51,0.00032769,4]
[328459386,1717416650021,-977.33,0.00032769,4]
[328459387,1717416650031,-500.0,0.00032769,4]
[328459388,1717416650042,-894.53,0.00032769,4]
[328459389,1717416650051,-1558.8,0.00032769,4]
[328459390,1717416650060,-750.25,0.00032769,4]
[328459391,1717416650069,-500.0,0.00032769,4]
[328459392,1717416650078,-577.95,0.00032769,4]
[328459393,1717416650087,-173.80395674,0.00032769,4]
[328459394,1717416650096,-500.0,0.00032769,4]
[328459395,1717416650106,-176.892303,0.00032769,7]
[328459396,1717416650115,-176.892303,0.00032769,7]
[328459397,1717416650124,-151.0,0.00032769,7]
[328459398,1717416650133,-500.0,0.00032769,4]
[328459399,1717416650142,-150.0,0.0003277,2]
[328459400,1717416650152,-150.0,0.00032771,2]
[328459401,1717416650161,-150.0,0.00032772,2]
[328459402,1717416650170,-150.0,0.00032774,2]
[328459403,1717416650179,-150.0,0.00032778,2]
[328459404,1717416650189,-150.0,0.00032778,2]
[328459405,1717416650198,-200.0,0.00032779,2]
[328459406,1717416650207,-150.0,0.0003278,2]
[328459407,1717416650216,-150.0,0.00032787,2]
[328459408,1717416650226,-150.0,0.00032791,2]
[328459409,1717416650235,-150.0,0.00032793,2]
[328459410,1717416650245,-150.0,0.00032796,2]
[328459411,1717416650254,-150.0,0.00032798,2]
[328459412,1717416650263,-150.0,0.00032798,2]
[328459413,1717416650272,-209.0,0.000328,2]
[328459414,1717416650281,-150.0,0.00032802,2]
[328459415,1717416650290,-150.0,0.00032805,2]
[328459416,1717416650299,-150.0,0.00032806,2]
[328459417,1717416650308,-150.0,0.00032806,2]
[328459418,1717416650317,-150.0,0.00032806,2]
[328459419,1717416650326,-150.0,0.00032827,2]
[328459420,1717416650336,-150.0,0.00032827,2]
[328459421,1717416650346,-150.0,0.00032828,2]
[328459422,1717416650356,-150.0,0.00032829,2]
[328459423,1717416650366,-10039.54121705,0.00032832,6]
[328459424,1717416650375,-150.0,0.00032834,2]
[328459425,1717416650384,-150.0,0.00032839,2]
[328459426,1717416650395,-150.0,0.00032839,2]
[328459427,1717416650404,-166.66666666,0.00032842,7]
[328459428,1717416650413,-150.0,0.00032847,2]
[328459429,1717416650422,-150.0,0.00032847,2]
[328459430,1717416650431,-154.41643192,0.00032853,7]
[328459431,1717416650440,-801.0,0.00032856,2]
[328459432,1717416650449,-173.0,0.0003286,15]
[328459433,1717416650459,-154.72329648,0.00032861,7]
[328459434,1717416650467,-500.0,0.00032866,4]
[328459435,1717416650476,-500.0,0.00032866,4]
[328459436,1717416650485,-500.0,0.00032866,4]
[328459437,1717416650496,-500.0,0.00032866,4]
[328459438,1717416650507,-500.0,0.00032866,4]
[328459439,1717416650516,-168.71475012,0.00032866,4]
[328459440,1717416650525,-500.0,0.00032866,4]
[328459441,1717416650534,-500.0,0.00032866,4]
[328459442,1717416650544,-500.0,0.00032866,4]
[328459443,1717416650553,-500.0,0.00032866,4]
[328459444,1717416650562,-500.0,0.00032866,4]
[328459445,1717416650571,-500.0,0.00032866,4]
[328459446,1717416650581,-150.0,0.00032866,2]
[328459447,1717416650698,-150.0,0.00032866,2]
[328459448,1717416650707,-173.0,0.0003287,15]
[328459449,1717416650717,-2046.34628357,0.00032873,4]
[328459450,1717416650726,-150.0,0.00032875,2]
[328459451,1717416650735,-3000.0,0.00032876,90]
[328459452,1717416650745,-3000.0,0.00032876,90]
[328459453,1717416650754,-3000.0,0.00032876,90]
[328459454,1717416650763,-3000.0,0.00032876,90]
[328459455,1717416650773,-3000.0,0.00032876,90]
[328459456,1717416650783,-790.97891448,0.00032876,90]
[328459457,1717416650792,-173.0,0.0003288,15]
[328459458,1717416650801,-150.0,0.00032896,2]
[328459459,1717416650810,-150.0,0.00032896,2]
[328459460,1717416650820,-161.36197756,0.000329,30]
[328459461,1717416650828,-267758.09025323,0.000329,30]
[328459462,1717416650838,-1129.10589485,0.000329,30]
[328459463,1717416650846,-3583.0,0.000329,2]
[328459464,1717416650855,-1000.0,0.000329,2]
[328459465,1717416650864,-2000.0,0.000329,2]
[328459466,1717416650873,-1000.0,0.000329,2]
[328459467,1717416650883,-200.43073784,0.000329,2]
[328459468,1717416650892,-178.0,0.000329,2]
[328459469,1717416650901,-5663.0406678,0.000329,2]
[328459470,1717416650910,-490.55261825,0.000329,2]
[328459471,1717416650919,-151.0,0.000329,7]
[328459472,1717416650929,-151.0,0.000329,7]
[328459473,1717416650938,-176.892303,0.000329,7]
[328459474,1717416650947,-150.0,0.000329,7]
[328459475,1717416650956,-176.892303,0.000329,7]
[328459476,1717416650965,-151.0,0.000329,7]
[328459477,1717416650974,-150.0,0.00032902,2]
[328459478,1717416650983,-150.0,0.00032904,2]
[328459479,1717416650992,-150.0,0.0003291,2]
[328459480,1717416651002,-150.0,0.00032914,2]
[328459481,1717416651010,-150.0,0.00032922,2]
[328459482,1717416651020,-150.0,0.00032925,2]
[328459483,1717416651029,-150.0,0.00032925,2]
[328459484,1717416651038,-447.92153117,0.00032929,2]
[328459485,1717416651047,-150.0,0.00032929,2]
[328459486,1717416651056,-150.0,0.00032939,2]
[328459487,1717416651066,-150.0,0.00032941,2]
[328459488,1717416651075,-150.0,0.00032941,2]
[328459489,1717416651084,-178.9597924,0.00032942,7]
[328459490,1717416651093,-150.0,0.00032947,2]
[328459491,1717416651102,-150.0,0.00032951,2]
[328459492,1717416651112,-5004.39,0.00032957,2]
[328459493,1717416651122,-150.0,0.0003296,2]
[328459494,1717416651131,-150.0,0.00032964,2]
[328459495,1717416651140,-150.0,0.00032965,2]
[328459496,1717416651150,-150.0,0.0003297,2]
[328459497,1717416651160,-150.0,0.00032973,2]
[328459498,1717416651169,-423.80389191,0.00032978,15]
[328459499,1717416651178,-150.0,0.00032981,2]
[328459500,1717416651189,-150.0,0.00032988,2]
[328459501,1717416651199,-6181.2357401,0.00032991,2]
[328459502,1717416651209,-17110.4702445,0.00032992,2]
[328459503,1717416651218,-4000.0,0.00033,2]
[328459504,1717416651227,-7973.62586278,0.00033,2]
[328459505,1717416651236,-450.0,0.00033,2]
[328459506,1717416651245,-155.0,0.00033,4]
[328459507,1717416651254,-4000.0,0.00033,2]
[328459508,1717416651263,-4000.0,0.00033,2]
[328459509,1717416651272,-4000.0,0.00033,2]
[328459510,1717416651282,-4000.0,0.00033,2]
[328459511,1717416651290,-307.05044098,0.00033,5]
[328459512,1717416651300,-4000.0,0.00033,2]
[328459513,1717416651309,-4000.0,0.00033,2]
[328459514,1717416651318,-4000.0,0.00033,2]
[328459515,1717416651327,-943.15791259,0.00033,34]
[328459516,1717416651336,-4000.0,0.00033,2]
[328459517,1717416651345,-10000.0,0.00033,27]
[328459518,1717416651354,-400.0,0.00033,15]
[328459519,1717416651363,-1000.0,0.00033,2]
[328459520,1717416651372,-1000.0,0.00033,2]
[328459521,1717416651381,-1000.0,0.00033,2]
[328459522,1717416651390,-1000.0,0.00033,2]
[328459523,1717416651399,-1000.0,0.00033,2]
[328459524,1717416651408,-1000.0,0.00033,2]
[328459525,1717416651417,-1000.0,0.00033,2]
[328459526,1717416651426,-1000.0,0.00033,2]
[328459527,1717416651435,-1000.0,0.00033,2]
[328459528,1717416651444,-1000.0,0.00033,2]
[328459529,1717416651453,-690.0,0.00033,6]
[328459530,1717416651463,-218.0,0.00033,6]
[328459531,1717416651472,-500.0,0.00033,2]
[328459532,1717416651481,-566.738211,0.00033,2]
[328459533,1717416651490,-6000.0,0.00033,7]
[328459534,1717416651502,-300.386185,0.00033,3]
[328459535,1717416651513,-1000.94,0.00033,2]
[328459536,1717416651522,-750.0,0.00033,120]
[328459537,1717416651532,-122114.4021066,0.00033004,2]
[328459538,1717416651543,-154.41643192,0.00033006,7]
[328459539,1717416651553,-150.0,0.00033026,7]
[328459540,1717416651562,-212.0,0.0003303,2]
[328459541,1717416651572,-155.48204463,0.00033035,7]
[328459542,1717416651582,-151.0,0.00033036,7]
[328459543,1717416651591,-151.0,0.00033036,7]
[328459544,1717416651600,-176.892303,0.00033036,7]
[328459545,1717416651609,-176.892303,0.00033036,7]
[328459546,1717416651619,-151.0,0.00033036,7]
[328459547,1717416651628,-2046.34628357,0.00033036,5]
[328459548,1717416651638,-151.0,0.00033038,7]
[328459549,1717416651647,-1000.0,0.0003304,2]
[328459550,1717416651656,-10000.0,0.0003304,2]
[328459551,1717416651665,-767.59,0.00033042,4]
[328459552,1717416651675,-526.66,0.00033042,4]
[328459553,1717416651684,-500.0,0.00033042,4]
[328459554,1717416651693,-769.79,0.00033042,4]
[328459555,1717416651702,-2858.23,0.00033042,4]
[328459556,1717416651712,-500.0,0.00033042,4]
[328459557,1717416651721,-631.37,0.00033042,4]
[328459558,1717416651730,-516.97,0.00033042,4]
[328459559,1717416651740,-528.82,0.00033042,4]
[328459560,1717416651750,-500.0,0.00033042,4]
[328459561,1717416651759,-783.49,0.00033042,4]
[328459562,1717416651769,-526.41,0.00033042,4]
[328459563,1717416651778,-500.0,0.00033042,4]
[328459564,1717416651787,-500.0,0.00033042,4]
[328459565,1717416651796,-500.0,0.00033042,4]
[328459566,1717416651806,-500.0,0.00033042,4]
[328459567,1717416651815,-2433.57,0.00033042,4]
[328459568,1717416651824,-10624.38,0.00033042,4]
[328459569,1717416651833,-825.24,0.00033042,4]
[328459570,1717416651842,-500.0,0.00033042,4]
[328459571,1717416651851,-500.0,0.00033042,4]
[328459572,1717416651861,-609.69,0.00033042,4]
[328459573,1717416651870,-500.0,0.00033042,4]
[328459574,1717416651880,-500.0,0.00033043,4]
[328459575,1717416651889,-500.0,0.00033043,4]
[328459576,1717416651898,-500.0,0.00033043,4]
[328459577,1717416651907,-500.0,0.00033043,4]
[328459578,1717416651916,-500.0,0.00033043,4]
[328459579,1717416651926,-500.0,0.00033043,4]
[328459580,1717416651935,-589.1,0.00033043,4]
[328459581,1717416651944,-500.0,0.00033043,4]
[328459582,1717416651954,-763.85,0.00033043,4]
[328459583,1717416651963,-163.83907647,0.00033043,4]
[328459584,1717416651972,-700.17,0.00033043,4]
[328459585,1717416651981,-608.4,0.00033043,4]
[328459586,1717416651990,-500.0,0.00033043,4]
[328459587,1717416652000,-500.0,0.00033043,4]
[328459588,1717416652009,-753.19,0.00033043,4]
[328459589,1717416652018,-500.0,0.00033043,4]
[328459590,1717416652027,-500.0,0.00033043,4]
[328459591,1717416652038,-500.0,0.00033043,4]
[328459592,1717416652048,-500.0,0.00033043,4]
[328459593,1717416652058,-500.0,0.00033043,4]
[328459594,1717416652067,-500.0,0.00033043,4]
[328459595,1717416652076,-1806.26,0.00033043,4]
[328459596,1717416652086,-500.0,0.00033043,4]
[328459597,1717416652095,-500.0,0.00033043,4]
[328459598,1717416652105,-589.51,0.00033043,4]
[328459599,1717416652115,-977.33,0.00033043,4]
[328459600,1717416652124,-500.0,0.00033043,4]
[328459601,1717416652133,-894.53,0.00033043,4]
[328459602,1717416652142,-1558.8,0.00033043,4]
[328459603,1717416652151,-750.25,0.00033043,4]
[328459604,1717416652160,-500.0,0.00033043,4]
[328459605,1717416652170,-577.95,0.00033043,4]
[328459606,1717416652179,-500.0,0.00033043,4]
[328459607,1717416652189,-433.7100559,0.00033043,4]
[328459608,1717416652198,-102465.1510324,0.00033048,2]
[328459609,1717416652208,-14357.2493301,0.00033071,2]
[328459610,1717416652217,-176.0,0.0003308,20]
[328459611,1717416652227,-5186.6220753,0.00033094,2]
[328459612,1717416652236,-4192.0084105,0.00033094,2]
[328459613,1717416652246,-11604.0284156,0.00033094,2]
[328459614,1717416652255,-82815.8999582,0.00033094,2]
[328459615,1717416652264,-506.50258557,0.000331,2]
[328459616,1717416652274,-668.0,0.000331,22]
[328459617,1717416652284,-1000.94,0.000331,2]
[328459618,1717416652293,-3197.3947456,0.00033104,2]
[328459619,1717416652303,-8850.8075012,0.00033104,2]
[328459620,1717416652313,-63166.6488841,0.00033104,2]
[328459621,1717416652322,-152.63995083,0.00033109,7]
[328459622,1717416652331,-176.892303,0.00033127,7]
[328459623,1717416652340,-176.892303,0.00033127,7]
[328459624,1717416652349,-151.0,0.00033127,7]
[328459625,1717416652358,-43517.3978099,0.00033131,2]